bitfinex/quotes_BTCUSD_20250226
["timestamp","ask_amount","ask_price","bid_price","bid_amount"]
[1740554862181,0.468167,89197.0,89196.0,0.15054996]
[1740554864382,0.224219,89199.0,89196.0,0.15054996]
[1740554865234,0.224219,89199.0,89196.0,0.14654996]
[1740554865532,0.168167,89197.0,89196.0,0.14554996]
[1740554865739,0.168167,89197.0,89196.0,0.14854996]
[1740554867191,0.168167,89197.0,89196.0,0.14554996]
[1740554867391,0.168167,89197.0,89196.0,0.14254996]
[1740554867724,0.168167,89197.0,89196.0,0.14654996]
[1740554868111,0.168167,89197.0,89196.0,0.15054996]
[1740554871760,0.1685912,89197.0,89196.0,0.15054996]
[1740554876522,0.0004242,89197.0,89196.0,0.31871796]
[1740554876724,0.00050361,89222.0,89219.0,0.06238357]
[1740554876725,0.168123,89220.0,89219.0,0.06238357]
[1740554876953,0.17657562,89220.0,89219.0,0.06238357]
[1740554878541,0.17657562,89220.0,89219.0,0.06338357]
[1740554878780,0.17657562,89220.0,89219.0,0.06238357]
[1740554878984,0.17657562,89220.0,89219.0,0.06438357]
[1740554879345,0.17657562,89220.0,89219.0,0.06238357]
[1740554879546,0.04508515,89234.0,89229.0,0.06238357]
[1740554879756,0.04508515,89234.0,89233.0,0.06238357]
[1740554879757,0.03670583,89234.0,89233.0,0.06238357]
[1740554880099,0.0004243,89235.0,89234.0,0.06238357]
[1740554880376,0.1685193,89235.0,89234.0,0.06238357]
[1740554880528,0.0004243,89235.0,89234.0,0.11058357]
[1740554880755,0.0004243,89235.0,89234.0,0.11066355]
[1740554880965,0.1685193,89235.0,89234.0,0.11066355]
[1740554881167,0.20522154,89235.0,89234.0,0.11066355]
[1740554885641,0.20522154,89235.0,89234.0,0.11151155]
[1740554887839,0.50522154,89235.0,89234.0,0.06331155]
[1740554888013,0.50522154,89235.0,89234.0,0.00092798]
[1740554890630,0.50522154,89235.0,89234.0,0.06331155]
[1740554892599,0.0278458,89235.0,89234.0,0.06331155]
[1740554892819,0.1959408,89235.0,89234.0,0.06331155]
[1740554892992,0.168095,89235.0,89234.0,0.00092798]
[1740554893238,0.168095,89235.0,89234.0,0.06331155]
[1740554893455,0.20448665,89235.0,89234.0,0.06331155]
[1740554895764,0.2488059,89236.0,89234.0,0.06331155]
[1740554895919,0.168095,89235.0,89234.0,0.06331155]
[1740554896321,0.20384102,89235.0,89234.0,0.06331155]
[1740554901198,0.20384102,89235.0,89234.0,0.07506497]
[1740554905480,0.50384102,89235.0,89234.0,0.0126814]
[1740554905881,0.50384102,89235.0,89234.0,0.00092798]
[1740554909785,0.50384102,89235.0,89234.0,9.8e-07]
[1740554910761,0.300424,89236.0,89234.0,9.8e-07]
[1740554911117,0.168095,89235.0,89234.0,9.8e-07]
[1740554911489,0.21401086,89235.0,89234.0,9.8e-07]
[1740554915294,0.51401086,89235.0,89234.0,9.8e-07]
[1740554919358,0.51401086,89235.0,89234.0,0.14258455]
[1740554920752,0.51443486,89235.0,89234.0,0.14258455]
[1740554928087,0.51443486,89235.0,89234.0,0.06238455]
[1740554929053,0.49478353,89235.0,89234.0,0.06238455]
[1740554929903,0.27598722,89235.0,89234.0,0.06238455]
[1740554930119,0.168095,89235.0,89234.0,0.07413797]
[1740554930374,0.21375526,89235.0,89234.0,0.07413797]
[1740554932655,0.23519209,89236.0,89234.0,0.07413797]
[1740554932868,0.168095,89235.0,89234.0,0.07413797]
[1740554933855,0.168519,89235.0,89234.0,0.07413797]
[1740554935319,0.169519,89235.0,89234.0,0.07413797]
[1740554936163,0.170519,89235.0,89234.0,0.07413797]
[1740554940246,0.470519,89235.0,89234.0,0.07413797]
[1740554940447,0.470519,89235.0,89234.0,0.06238455]
[1740554948094,0.470519,89235.0,89234.0,0.07413797]
[1740554953316,0.302424,89235.0,89234.0,0.07413797]
[1740554953515,0.302424,89235.0,89234.0,0.32013497]
[1740554953713,0.002424,89235.0,89234.0,0.15203797]
[1740554954546,0.170519,89235.0,89234.0,0.15203797]
[1740554984302,0.002424,89235.0,89234.0,0.15203797]
[1740554987104,0.002424,89235.0,89234.0,0.33624458]
[1740554987311,0.002424,89235.0,89234.0,0.33467582]
[1740554988028,0.170519,89235.0,89234.0,0.16657882]
[1740554988233,0.002424,89235.0,89234.0,0.16657882]
[1740554988430,0.170519,89235.0,89234.0,0.16657882]
[1740554988638,0.170519,89235.0,89234.0,0.33806926]
[1740554989079,0.001424,89235.0,89234.0,0.33806926]
[1740554989513,0.169519,89235.0,89234.0,0.33806926]
[1740554989688,0.001424,89235.0,89234.0,0.33806926]
[1740554990262,0.169519,89235.0,89234.0,0.33806926]
[1740554990465,0.001424,89235.0,89234.0,0.33806926]
[1740554990671,0.000424,89235.0,89234.0,0.34006926]
[1740554990884,0.3,89243.0,89235.0,0.01454085]
[1740554991087,0.168092,89237.0,89235.0,0.01454085]
[1740554991293,0.34618299,89243.0,89236.0,0.01175057]
[1740554991492,0.34618299,89243.0,89237.0,0.00156865]
[1740554991728,0.168087,89240.0,89237.0,0.00156865]
[1740554991886,0.168086,89241.0,89237.0,0.01174915]
[1740554992285,0.168087,89240.0,89235.0,0.01454085]
[1740554992456,0.168087,89239.0,89238.0,0.01174773]
[1740554992812,0.224114,89241.0,89237.0,0.002]
[1740554993025,0.168089,89238.0,89235.0,0.01454085]
[1740554993212,0.168089,89238.0,89237.0,0.003]
[1740554993570,0.168089,89238.0,89235.0,0.01454085]
[1740554993790,0.224109,89242.0,89238.0,0.003]
[1740554993970,0.168087,89240.0,89238.0,0.003]
[1740554994179,0.168087,89239.0,89238.0,0.003]
[1740554994382,0.168087,89239.0,89235.0,0.01454085]
[1740554994888,0.168088,89239.0,89235.0,0.01454085]
[1740554995094,0.168088,89239.0,89236.0,0.03080258]
[1740554995294,0.224104,89244.0,89243.0,0.06238357]
[1740554996462,0.27064723,89244.0,89243.0,0.06238357]
[1740554997238,0.27064723,89244.0,89243.0,0.06338357]
[1740554997767,0.27064723,89244.0,89243.0,0.002]
[1740554997981,0.224112,89242.0,89234.0,0.17149142]
[1740554998187,0.468095,89235.0,89234.0,0.23387499]
[1740554998390,0.468095,89235.0,89234.0,0.24562841]
[1740554999650,0.468095,89235.0,89234.0,0.24862841]
[1740555000486,0.468095,89235.0,89234.0,0.07913797]
[1740555003409,0.468095,89235.0,89234.0,0.07613797]
[1740555003612,0.468095,89235.0,89234.0,0.07413797]
[1740555003826,0.468095,89235.0,89234.0,0.07613797]
[1740555004408,0.468095,89235.0,89234.0,0.07513797]
[1740555005033,0.468095,89235.0,89234.0,0.07413797]
[1740555005909,0.468095,89235.0,89234.0,0.0117544]
[1740555006256,0.468095,89235.0,89234.0,0.07413797]
[1740555006912,0.468095,89235.0,89234.0,4e-07]
[1740555007057,0.544795,89235.0,89234.0,4e-07]
[1740555007844,0.3,89226.0,89214.0,0.0476]
[1740555008062,0.3,89226.0,89210.0,0.0807]
[1740555008063,0.46814,89211.0,89210.0,0.0807]
[1740555008260,0.00858021,89223.0,89208.0,0.0096]
[1740555008461,0.168144,89209.0,89208.0,0.0096]
[1740555008982,0.168148,89207.0,89206.0,0.01904549]
[1740555009145,0.168167,89197.0,89196.0,0.0008482]
[1740555009753,0.21386285,89197.0,89196.0,0.0008482]
[1740555010229,0.224215,89200.0,89196.0,0.0008482]
[1740555010427,0.46820886,89197.0,89196.0,0.0008482]
[1740555011089,0.5148685,89197.0,89196.0,0.0008482]
[1740555012091,0.5148685,89197.0,89196.0,0.0058482]
[1740555012493,0.5148685,89197.0,89196.0,0.0008482]
[1740555012893,0.5148685,89197.0,89196.0,0.0048482]
[1740555013715,0.5148685,89197.0,89196.0,0.0028482]
[1740555014119,0.5148685,89197.0,89196.0,0.0008482]
[1740555014314,0.52335958,89197.0,89196.0,0.0008482]
[1740555015284,0.05515072,89197.0,89196.0,0.0008482]
[1740555015603,0.17665808,89197.0,89196.0,0.0028482]
[1740555015885,0.17665808,89197.0,89196.0,0.0018482]
[1740555016039,0.17665808,89197.0,89196.0,0.0008482]
[1740555016439,0.17765808,89197.0,89196.0,0.0008482]
[1740555017649,0.22394281,89197.0,89196.0,0.0008482]
[1740555018092,0.21545173,89197.0,89196.0,0.0008482]
[1740555018823,0.169167,89197.0,89196.0,0.0008482]
[1740555019340,0.17753997,89197.0,89196.0,0.0008482]
[1740555019514,0.22216156,89197.0,89196.0,0.0008482]
[1740555022109,0.52116156,89197.0,89196.0,0.0008482]
[1740555023502,0.52116156,89197.0,89196.0,0.0018482]
[1740555024934,0.52116156,89197.0,89196.0,0.0008482]
[1740555025281,0.51278859,89197.0,89196.0,0.0018482]
[1740555025786,0.468167,89197.0,89196.0,0.0018482]
[1740555026486,0.468167,89197.0,89196.0,0.0008482]
[1740555026779,0.468167,89197.0,89196.0,0.0018482]
[1740555027226,0.468167,89197.0,89196.0,0.0008482]
[1740555027399,0.47654121,89197.0,89196.0,0.0018482]
[1740555027575,0.52138881,89197.0,89196.0,0.0008482]
[1740555027939,0.52138881,89197.0,89196.0,0.0018482]
[1740555028139,0.52181311,89197.0,89196.0,0.0008482]
[1740555029591,0.52181311,89197.0,89196.0,0.0018482]
[1740555035091,0.52181311,89197.0,89196.0,0.0028482]
[1740555035486,0.52181311,89197.0,89196.0,0.0018482]
[1740555036500,0.5134389,89197.0,89196.0,0.0018482]
[1740555036700,0.4685913,89197.0,89196.0,0.0018482]
[1740555036999,0.4683115,89197.0,89196.0,0.0018482]
[1740555038384,0.51487069,89197.0,89196.0,0.0018482]
[1740555038586,0.52325553,89197.0,89196.0,0.0018482]
[1740555040370,0.52325553,89197.0,89196.0,0.0008482]
[1740555040893,0.52325553,89197.0,89196.0,0.0018482]
[1740555041671,0.52425553,89197.0,89196.0,0.0018482]
[1740555043574,0.52325553,89197.0,89196.0,0.0008482]
[1740555044491,0.468174,89193.0,89192.0,6e-07]
[1740555044619,0.468193,89183.0,89168.0,0.0453]
[1740555045006,0.468193,89183.0,89159.0,0.0453]
[1740555045286,0.468193,89183.0,89162.0,0.0779]
[1740555045907,0.468212,89173.0,89162.0,0.0779]
[1740555046128,0.5374599,89173.0,89162.0,0.0779]
[1740555046336,0.468231,89163.0,89162.0,0.0779]
[1740555046748,0.468231,89163.0,89159.0,0.0453]
[1740555046749,0.468236,89160.0,89159.0,0.0453]
[1740555047549,0.3,89159.0,89158.0,0.0008482]
[1740555047755,0.3,89159.0,89158.0,0.00126639]
[1740555048698,0.168236,89160.0,89158.0,0.00126639]
[1740555049013,0.168236,89160.0,89158.0,0.00626639]
[1740555049709,0.168236,89160.0,89158.0,0.01126639]
[1740555049856,0.168238,89159.0,89158.0,0.01126639]
[1740555050056,0.168238,89159.0,89158.0,0.00626639]
[1740555050465,0.168238,89159.0,89158.0,0.00526639]
[1740555050669,0.168238,89159.0,89158.0,0.00926639]
[1740555050904,0.168238,89159.0,89158.0,0.00526639]
[1740555051304,0.168238,89159.0,89158.0,0.01026639]
[1740555051875,0.168238,89159.0,89158.0,0.00626639]
[1740555052046,0.168238,89159.0,89158.0,0.01126639]
[1740555052746,0.17655137,89159.0,89158.0,0.01126639]
[1740555056056,0.168238,89159.0,89158.0,0.01126639]
[1740555056459,0.259924,89159.0,89158.0,0.01126639]
[1740555056870,0.168238,89159.0,89158.0,0.01126639]
[1740555057566,0.168238,89159.0,89158.0,0.00626639]
[1740555057567,0.468238,89159.0,89158.0,0.00626639]
[1740555057940,0.469238,89159.0,89158.0,0.00626639]
[1740555058583,0.468238,89159.0,89158.0,0.00126639]
[1740555059005,0.471238,89159.0,89158.0,0.00126639]
[1740555059412,0.468238,89159.0,89158.0,0.00126639]
[1740555059710,0.469238,89159.0,89158.0,0.00126639]
[1740555059948,0.470238,89159.0,89158.0,0.00126639]
[1740555060264,0.469238,89159.0,89158.0,0.00126639]
[1740555060762,0.470238,89159.0,89158.0,0.00126639]
[1740555062147,0.47873017,89159.0,89158.0,0.00126639]
[1740555062898,0.47873017,89159.0,89158.0,3.9e-07]
[1740555063565,0.470238,89159.0,89158.0,0.00084919]
[1740555063914,0.470238,89159.0,89158.0,1.9e-07]
[1740555064665,0.3,89158.0,89141.0,0.0787]
[1740555064900,0.468265,89145.0,89141.0,0.0787]
[1740555065279,0.468265,89145.0,89135.0,0.09336]
[1740555066776,0.468265,89145.0,89135.0,0.01016]
[1740555067117,0.468265,89145.0,89144.0,0.0058482]
[1740555067357,0.468291,89131.0,89130.0,0.000848]
[1740555068573,0.4687097,89131.0,89130.0,0.000848]
[1740555068781,0.4687097,89131.0,89130.0,0.006848]
[1740555068989,0.4687097,89131.0,89130.0,0.012848]
[1740555069377,0.4687097,89131.0,89130.0,0.006848]
[1740555070170,0.51503188,89131.0,89130.0,0.000848]
[1740555070393,0.51503188,89131.0,89130.0,0.001848]
[1740555070598,0.51503188,89131.0,89130.0,0.003848]
[1740555070780,0.51503188,89131.0,89130.0,0.001848]
[1740555071295,0.51503188,89131.0,89130.0,0.002848]
[1740555071519,0.51503188,89131.0,89130.0,0.001848]
[1740555071865,0.20942208,89131.0,89130.0,0.001848]
[1740555072436,0.04113108,89131.0,89130.0,0.000848]
[1740555072640,0.168291,89131.0,89130.0,0.000848]
[1740555072841,0.168291,89131.0,89130.0,0.002848]
[1740555073049,0.2132552,89131.0,89130.0,0.002848]
[1740555073376,0.2132552,89131.0,89130.0,0.003848]
[1740555073657,0.2132552,89131.0,89130.0,0.000848]
[1740555073890,0.2132552,89131.0,89130.0,0.001848]
[1740555074235,0.2132552,89131.0,89130.0,0.000848]
[1740555074439,0.2132552,89131.0,89130.0,0.002848]
[1740555074837,0.2132552,89131.0,89130.0,0.003848]
[1740555075512,0.2132552,89131.0,89130.0,0.002848]
[1740555075685,0.2132552,89131.0,89130.0,0.004848]
[1740555076666,0.168291,89131.0,89130.0,0.004848]
[1740555077408,0.51386478,89131.0,89130.0,0.004848]
[1740555077789,0.51386478,89131.0,89130.0,0.002848]
[1740555078060,0.468327,89112.0,89111.0,0.0002]
[1740555079960,0.468327,89112.0,89111.0,0.0012]
[1740555081321,0.3,89112.0,89111.0,0.0012]
[1740555081522,0.05388627,89131.0,89112.0,0.0466]
[1740555081766,0.3,89116.0,89112.0,0.0466]
[1740555081992,0.468323,89114.0,89113.0,0.01139143]
[1740555082296,0.3,89113.0,89112.0,0.0466]
[1740555082508,0.05403347,89131.0,89112.0,0.05799285]
[1740555082704,0.01431249,89131.0,89112.0,0.05899285]
[1740555082911,0.23870149,89131.0,89113.0,0.0824]
[1740555083116,0.3,89130.0,89114.0,0.00157083]
[1740555083319,0.168309,89122.0,89115.0,0.0824]
[1740555083519,0.168309,89122.0,89115.0,0.09378858]
[1740555083730,0.27838131,89131.0,89115.0,0.09378858]
[1740555083731,0.168307,89123.0,89115.0,0.09378858]
[1740555084256,0.224403,89126.0,89115.0,0.09378858]
[1740555084544,0.16831,89121.0,89115.0,0.09578858]
[1740555084700,0.16831,89121.0,89115.0,0.09378858]
[1740555085254,0.224371,89138.0,89118.0,0.083]
[1740555085383,0.224371,89138.0,89116.0,0.00157086]
[1740555085384,0.224335,89153.0,89120.0,0.083]
[1740555085586,0.3,89152.0,89121.0,0.00157071]
[1740555085788,0.3,89150.0,89121.0,0.01295074]
[1740555086133,0.1683,89127.0,89122.0,0.0497]
[1740555086307,0.168302,89126.0,89122.0,0.0610786]
[1740555086508,0.168304,89124.0,89122.0,0.0610786]
[1740555087125,0.3,89139.0,89122.0,0.0610786]
[1740555087299,0.228371,89138.0,89122.0,0.06264931]
[1740555087498,0.3,89136.0,89125.0,0.168301]
[1740555087703,0.468282,89136.0,89126.0,0.01294354]
[1740555087908,0.3,89136.0,89126.0,0.01294354]
[1740555088108,0.3,89136.0,89128.0,0.0773]
[1740555088368,0.008289,89152.0,89131.0,0.1264]
[1740555088506,0.168269,89143.0,89132.0,0.25735944]
[1740555088727,0.3,89141.0,89132.0,0.09886435]
[1740555088931,0.3,89141.0,89133.0,0.168287]
[1740555089129,0.3,89141.0,89134.0,0.00157049]
[1740555089335,0.04542831,89150.0,89137.0,0.0783]
[1740555089532,0.168262,89147.0,89138.0,0.0015704]
[1740555089788,0.168262,89147.0,89138.0,0.0129262]
[1740555089954,0.168264,89146.0,89138.0,0.0129262]
[1740555090156,0.224348,89147.0,89138.0,0.0129262]
[1740555090364,0.16827,89143.0,89138.0,0.0015704]
[1740555090599,0.3,89148.0,89139.0,0.01135437]
[1740555090797,0.168264,89146.0,89140.0,0.00157039]
[1740555090970,0.168264,89146.0,89140.0,0.01135295]
[1740555091330,0.3,89148.0,89140.0,0.01135295]
[1740555091478,0.168272,89141.0,89140.0,0.01135295]
[1740555091843,0.168276,89139.0,89138.0,0.001]
[1740555092128,0.168276,89139.0,89138.0,0.002]
[1740555092461,0.224365,89141.0,89137.0,0.0783]
[1740555092694,0.168278,89138.0,89137.0,0.0783]
[1740555093188,0.26994752,89150.0,89137.0,0.0783]
[1740555093395,0.168276,89139.0,89138.0,0.00157037]
[1740555093595,0.168278,89138.0,89137.0,0.0803]
[1740555093995,0.168278,89138.0,89137.0,0.0833]
[1740555094330,0.168278,89138.0,89137.0,0.0803]
[1740555094994,0.168278,89138.0,89137.0,0.0783]
[1740555095161,0.168278,89138.0,89137.0,0.0813]
[1740555095937,0.168276,89140.0,89137.0,0.0843]
[1740555096282,0.3,89150.0,89137.0,0.0843]
[1740555096483,0.3,89150.0,89138.0,0.00157037]
[1740555096638,0.04619023,89150.0,89138.0,0.16984837]
[1740555096853,0.168265,89146.0,89138.0,0.00157037]
[1740555097206,0.224345,89149.0,89138.0,0.00157037]
[1740555097207,0.3,89148.0,89138.0,0.00157037]
[1740555097412,0.168265,89146.0,89138.0,0.00157037]
[1740555097906,0.168268,89144.0,89138.0,0.00157037]
[1740555098196,0.168269,89143.0,89138.0,0.00157037]
[1740555098406,0.168271,89142.0,89138.0,0.00157037]
[1740555098608,0.168268,89144.0,89137.0,0.07987044]
[1740555098823,0.168268,89144.0,89137.0,0.08287044]
[1740555099026,0.168265,89145.0,89137.0,0.08287044]
[1740555099226,0.04666562,89150.0,89149.0,0.1263]
[1740555099453,0.21492062,89150.0,89149.0,0.1263]
[1740555099571,0.0004245,89159.0,89150.0,0.01454085]
[1740555099770,0.224323,89157.0,89150.0,0.01454085]
[1740555099974,0.0004245,89159.0,89150.0,0.01454085]
[1740555100177,0.168253,89151.0,89150.0,0.01454085]
[1740555100514,0.168253,89151.0,89150.0,0.01466626]
[1740555101124,0.168251,89153.0,89150.0,0.01466626]
[1740555101329,0.168252,89152.0,89150.0,0.01466626]
[1740555101491,0.168252,89152.0,89150.0,0.01666626]
[1740555101948,0.16825,89153.0,89150.0,0.01666626]
[1740555102179,0.168253,89151.0,89150.0,0.01666626]
[1740555102382,0.0004245,89159.0,89150.0,0.01466626]
[1740555102560,0.0004245,89159.0,89151.0,0.00157008]
[1740555102777,0.0004245,89159.0,89155.0,0.168244]
[1740555102980,0.0004245,89159.0,89156.0,0.16981311]
[1740555103336,0.0004245,89159.0,89156.0,0.00157011]
[1740555103758,0.0004245,89159.0,89152.0,0.24685]
[1740555103759,0.0004245,89159.0,89154.0,0.168248]
[1740555103965,0.0004245,89159.0,89154.0,0.16981813]
[1740555104166,0.0004245,89159.0,89155.0,0.168246]
[1740555104590,0.0004245,89159.0,89154.0,0.00157013]
[1740555104789,0.0004245,89159.0,89156.0,0.003]
[1740555104986,0.0004245,89159.0,89154.0,0.00157013]
[1740555105312,0.0004245,89159.0,89155.0,0.171246]
[1740555105487,0.168244,89156.0,89155.0,0.003]
[1740555105717,0.0004245,89159.0,89152.0,0.0786]
[1740555106043,0.168248,89154.0,89153.0,0.00157013]
[1740555106216,0.0004245,89159.0,89152.0,0.0786]
[1740555106217,0.16825,89153.0,89152.0,0.0786]
[1740555107525,0.16925,89153.0,89152.0,0.0846]
[1740555108692,0.16925,89153.0,89152.0,0.01612]
[1740555109096,0.16925,89153.0,89152.0,0.006]
[1740555109497,0.16925,89153.0,89152.0,0.012]
[1740555110285,0.16925,89153.0,89150.0,0.00012541]
[1740555110286,0.168253,89151.0,89150.0,0.00012541]
[1740555110856,0.168252,89152.0,89150.0,0.00012541]
[1740555111057,0.0004245,89159.0,89150.0,0.00012541]
[1740555111058,0.168253,89151.0,89150.0,0.00012541]
[1740555113598,0.168253,89151.0,89150.0,0.00612541]
[1740555113812,0.168253,89151.0,89150.0,0.00312541]
[1740555114059,0.168253,89151.0,89150.0,0.00612541]
[1740555115808,0.0004246,89153.0,89150.0,0.00612541]
[1740555116007,0.168253,89151.0,89150.0,0.00612541]
[1740555116810,0.168253,89151.0,89150.0,0.00012541]
[1740555117298,0.168253,89151.0,89150.0,0.00412541]
[1740555118060,0.168253,89151.0,89150.0,0.00612541]
[1740555118488,0.168253,89151.0,89150.0,0.00012541]
[1740555119054,0.168253,89151.0,89150.0,0.00312541]
[1740555119443,0.168253,89151.0,89150.0,0.00012541]
[1740555119638,0.168253,89151.0,89150.0,0.00412541]
[1740555119938,0.168253,89151.0,89150.0,0.00312541]
[1740555120356,0.168253,89151.0,89150.0,0.00612541]
[1740555121945,0.547553,89151.0,89150.0,4.1e-07]
[1740555122149,0.62006692,89151.0,89150.0,4.1e-07]
[1740555122353,0.547553,89151.0,89150.0,4.1e-07]
[1740555122948,0.168299,89127.0,89126.0,0.01012]
[1740555123155,0.168299,89127.0,89126.0,0.01024555]
[1740555123354,0.168299,89127.0,89126.0,0.00012555]
[1740555123625,0.168299,89127.0,89126.0,0.01024555]
[1740555124172,0.169299,89127.0,89126.0,0.01624555]
[1740555124614,0.21513753,89127.0,89126.0,0.01624555]
[1740555125092,0.21613753,89127.0,89126.0,0.02324555]
[1740555125491,0.21613753,89127.0,89126.0,0.01624555]
[1740555125696,0.169299,89127.0,89126.0,0.01624555]
[1740555125907,0.168299,89127.0,89126.0,0.01424555]
[1740555126325,0.169299,89127.0,89126.0,0.01424555]
[1740555126565,0.168299,89127.0,89126.0,0.01424555]
[1740555130910,0.10105634,89184.0,89127.0,0.076]
[1740555131106,0.00871949,89153.0,89129.0,0.0451]
[1740555131332,0.168275,89140.0,89130.0,0.00157045]
[1740555131505,0.0004246,89153.0,89131.0,0.01454085]
[1740555131716,0.0004246,89153.0,89133.0,0.01454085]
[1740555131920,0.0004246,89153.0,89134.0,0.00157038]
[1740555132286,0.168284,89135.0,89134.0,0.01012]
[1740555133755,0.224375,89137.0,89134.0,0.01312]
[1740555134087,0.168284,89135.0,89134.0,0.01312]
[1740555134285,0.168284,89135.0,89134.0,0.03166085]
[1740555134492,0.168284,89135.0,89134.0,0.01712]
[1740555134914,0.168284,89135.0,89134.0,0.01312]
[1740555135109,0.168284,89135.0,89134.0,0.01612]
[1740555135294,0.168284,89135.0,89134.0,0.0169682]
[1740555135750,0.168284,89135.0,89134.0,0.0139682]
[1740555135944,0.168284,89135.0,89134.0,0.0169682]
[1740555136106,0.168284,89135.0,89134.0,0.0139682]
[1740555136304,0.168284,89135.0,89134.0,0.0149682]
[1740555136650,0.168284,89135.0,89134.0,0.0139682]
[1740555137023,0.21461969,89135.0,89134.0,0.0169682]
[1740555138726,0.168284,89135.0,89134.0,0.0169682]
[1740555139322,0.3004245,89159.0,89135.0,0.0816]
[1740555139523,0.224363,89142.0,89135.0,0.0816]
[1740555139703,0.3004245,89159.0,89135.0,0.0816]
[1740555139704,0.224335,89152.0,89135.0,0.0816]
[1740555139904,0.168272,89141.0,89135.0,0.08317047]
[1740555140275,0.168282,89136.0,89135.0,0.0816]
[1740555140660,0.168284,89135.0,89134.0,0.0109682]
[1740555142376,0.168284,89135.0,89134.0,0.0139682]
[1740555143341,0.168284,89135.0,89134.0,0.0169682]
[1740555143539,0.168284,89135.0,89134.0,0.0139682]
[1740555143734,0.168284,89135.0,89134.0,0.0109682]
[1740555143992,0.168284,89135.0,89134.0,0.0169682]
[1740555144554,0.168284,89135.0,89134.0,0.0068482]
[1740555144759,0.468284,89135.0,89134.0,0.0068482]
[1740555145154,0.33993179,89135.0,89134.0,0.0068482]
[1740555145510,0.33993179,89135.0,89134.0,2e-07]
[1740555145690,0.168299,89127.0,89126.0,7.5e-07]
[1740555147240,0.168308,89122.0,89121.0,9.5e-07]
[1740555147414,0.168308,89122.0,89121.0,0.00012653]
[1740555148532,0.169308,89122.0,89121.0,0.00012653]
[1740555149420,0.170308,89122.0,89121.0,0.00012653]
[1740555150045,0.168319,89116.0,89115.0,7.3e-07]
[1740555150198,0.468319,89116.0,89115.0,0.00041943]
[1740555151775,0.468327,89112.0,89111.0,4.3e-07]
[1740555153072,0.471327,89112.0,89111.0,4.3e-07]
[1740555153272,0.171327,89112.0,89111.0,4.3e-07]
[1740555153802,0.174327,89112.0,89111.0,4.3e-07]
[1740555153951,0.171327,89112.0,89111.0,4.3e-07]
[1740555154163,0.174327,89112.0,89111.0,4.3e-07]
[1740555154370,0.171327,89112.0,89111.0,4.3e-07]
[1740555155358,0.168327,89112.0,89111.0,4.3e-07]
[1740555158560,0.171327,89112.0,89111.0,4.3e-07]
[1740555158791,0.174327,89112.0,89111.0,4.3e-07]
[1740555159120,0.171327,89112.0,89111.0,4.3e-07]
[1740555159306,0.174327,89112.0,89111.0,4.3e-07]
[1740555159809,0.171327,89112.0,89111.0,4.3e-07]
[1740555160214,0.174327,89112.0,89111.0,4.3e-07]
[1740555160420,0.168327,89112.0,89111.0,0.00084903]
[1740555160638,0.1687513,89112.0,89111.0,0.00084903]
[1740555160796,0.1717513,89112.0,89111.0,0.00084903]
[1740555161322,0.1687513,89112.0,89111.0,0.00084903]
[1740555161528,0.2447513,89112.0,89111.0,3e-08]
[1740555161769,0.6887544,89112.0,89111.0,3e-08]
[1740555163531,0.5969513,89112.0,89111.0,3e-08]
[1740555163937,0.61795185,89112.0,89111.0,3e-08]
[1740555166802,0.5969513,89112.0,89111.0,3e-08]
[1740555167739,0.4747513,89112.0,89111.0,3e-08]
[1740555168147,0.0493,89106.0,89089.0,0.1730617]
[1740555168372,0.168374,89087.0,89081.0,0.0812]
[1740555168569,0.468374,89087.0,89081.0,0.0812]
[1740555169578,0.468374,89087.0,89084.0,0.01064]
[1740555169779,0.468374,89087.0,89081.0,0.0812]
[1740555169987,0.50848494,89087.0,89084.0,0.01064]
[1740555170187,0.50848494,89087.0,89086.0,0.01548]
[1740555170701,0.50848494,89087.0,89086.0,0.01348]
[1740555170836,0.50848494,89087.0,89086.0,0.01548]
[1740555171679,0.46879242,89087.0,89086.0,0.01548]
[1740555172267,0.46879242,89087.0,89086.0,0.01348]
[1740555172477,0.50825573,89087.0,89086.0,0.01348]
[1740555174042,0.468393,89077.0,89076.0,7e-05]
[1740555174172,0.468408,89069.0,89068.0,0.0008488]
[1740555176738,0.468408,89069.0,89032.0,0.224636]
[1740555176739,0.3,89068.0,89054.0,6e-07]
[1740555176939,0.468454,89045.0,89023.0,0.17149044]
[1740555177150,0.468454,89045.0,89022.0,0.046]
[1740555177567,0.468454,89045.0,89022.0,0.05656]
[1740555178347,0.46887216,89045.0,89022.0,0.05656]
[1740555178667,0.48978875,89045.0,89044.0,1e-06]
[1740555180062,0.49578875,89045.0,89044.0,1e-06]
[1740555180254,0.48978875,89045.0,89044.0,1e-06]
[1740555180433,0.49820334,89045.0,89044.0,1e-06]
[1740555180816,0.47728675,89045.0,89044.0,1e-06]
[1740555181019,0.50123616,89045.0,89044.0,1e-06]
[1740555181228,0.48328675,89045.0,89044.0,1e-06]
[1740555181444,0.47728675,89045.0,89044.0,1e-06]
[1740555181657,0.03378216,89045.0,89044.0,1e-06]
[1740555181888,0.168478,89032.0,89031.0,1e-06]
[1740555183655,0.171478,89032.0,89031.0,1e-06]
[1740555183841,0.473478,89032.0,89031.0,1e-06]
[1740555184237,0.471478,89032.0,89031.0,1e-06]
[1740555184421,0.477478,89032.0,89031.0,1e-06]
[1740555184821,0.474478,89032.0,89031.0,1e-06]
[1740555185242,0.481478,89032.0,89031.0,1e-06]
[1740555185991,0.475478,89032.0,89031.0,1e-06]
[1740555187011,0.181478,89032.0,89031.0,1e-06]
[1740555187424,0.175478,89032.0,89031.0,1e-06]
[1740555187635,0.181478,89032.0,89031.0,1e-06]
[1740555188008,0.174478,89032.0,89031.0,1e-06]
[1740555188331,0.177478,89032.0,89031.0,1e-06]
[1740555189006,0.174478,89032.0,89031.0,1e-06]
[1740555189247,0.006,89032.0,89031.0,1e-06]
[1740555189452,0.006,89032.0,89031.0,0.079501]
[1740555189453,0.008,89032.0,89031.0,0.079501]
[1740555189697,0.008,89032.0,89031.0,0.25948943]
[1740555189890,0.174478,89032.0,89031.0,0.09100943]
[1740555190043,0.174478,89032.0,89031.0,0.10156943]
[1740555190258,0.008,89032.0,89031.0,0.10156943]
[1740555190453,0.176478,89032.0,89031.0,0.090061]
[1740555190634,0.174478,89032.0,89031.0,0.10156943]
[1740555190836,0.006,89032.0,89031.0,0.10156943]